Cogmind - Beta 9.6 *** ADVENTURER MODE // 2020.05.10 @ 21:11:26 Player: BinarySpace Result: Self-destructed Performance ------------- Evolutions (3) 1500 Regions Visited (10) 2000 Robots Destroyed (151) 755 Value Destroyed (3889) 3889 Prototype IDs (7) 140 Alien Tech Used (0) 0 Bonus (200) 200 TOTAL SCORE: 8484 Bonus ------- High Alert Combat Kills 200 Cogmind --------- Core Integrity 289/700 Matter 64/300 Energy 266/280 System Corruption 15% Temperature Cool (0) Movement Walking (160) Ox1 Location -7/Factory Parts ------- > --- POWER (1) -------- Cooled Ion Engine > --- PROPULSION (2) --- Improved Titanium Leg Improved Titanium Leg > --- UTILITY (8) ------ Improved Cooling System Improved Melee Analysis Suite Improved Medium Armor Plating Hacking Suite System Shield > --- WEAPON (2) ------- Flak Gun Gauss Cannon > --- INVENTORY (4) ---- Ion Cannon Improved Assault Rifle Assault Cannon Peak State ------------ > --- POWER ------------ Heavy Ion Engine > --- PROPULSION ------- Armored Treads Armored Treads > --- UTILITY ---------- Large Storage Unit High-capacity Storage Unit High-capacity Storage Unit High-capacity Storage Unit Advanced Targeting Computer Kinecellerator Hardened Medium Armor Plating Improved Field Recycling Unit > --- WEAPON ----------- Improved Assault Rifle Advanced Assault Cannon > --- INVENTORY -------- Heavy Ion Engine Cooled Ion Engine Cooled Ion Engine Cooled Ion Engine Armored Treads Armored Treads Armored Treads Armored Treads Armored Treads Armored Treads Advanced Heat Sink Large Storage Unit Large Storage Unit Advanced Sensor Array Improved Terrain Scan Processor Advanced Targeting Computer Matter Filter Kinecellerator Hardened Medium Armor Plating Improved Light Armor Plating Improved Light Armor Plating Hacking Suite Hacking Suite System Shield Improved Assault Rifle Advanced Assault Cannon Gauss Cannon Improved Grenade Launcher Improved Datajack Great Axe [Rating: 43] Favorites ----------- Power Heavy Ion Engine Engine Heavy Ion Engine Power Core Nuclear Core Propulsion Armored Treads Treads Armored Treads Leg Improved Titanium Leg Wheel Wheel Utility High-capacity Storage Unit Device Improved Heat Sink Storage High-capacity Storage Unit Processor Advanced Targeting Computer Hackware Hacking Suite Protection Improved Light Armor Plating Weapon Advanced Assault Cannon Energy Gun Particle Gun Ballistic Gun Improved Assault Rifle Ballistic Cannon Advanced Assault Cannon Launcher Grenade Launcher Build | -11 -10 -10 -9 -9 -9 -8 -8 -7 -7 -7 ------- Run | Scr Mat Min Mat Min Exi Min Mat Fac Was Fac Slots Evolved 6 | . . . 2 . . . 2 2 . . Power . | . . . . . . . . . . . Propulsion . | . . . . . . . . . . . Utility 6 | . . . 2 . . . 2 2 . . Weapon . | . . . . . . . . . . . Parts Attached 92 | 5 7 2 24 1 . . 32 7 1 13 Power 8 | . . . 4 . . . 2 . . 2 Engine 7 | . . . 4 . . . 1 . . 2 Core 1 | . . . . . . . 1 . . . Reactor . | . . . . . . . . . . . Propulsion 15 | 2 2 2 3 . . . 3 . 1 2 Treads 8 | 1 . 1 2 . . . 3 . 1 . Leg 2 | . . . . . . . . . . 2 Wheel 5 | 1 2 1 1 . . . . . . . Hover . | . . . . . . . . . . . Flight . | . . . . . . . . . . . Utility 28 | 1 3 . 4 . . . 9 6 . 5 Device 4 | . . . . . . . 1 2 . 1 Storage 13 | 1 3 . 4 . . . 5 . . . Processor 2 | . . . . . . . . 1 . 1 Hackware 2 | . . . . . . . . . . 2 Protection 7 | . . . . . . . 3 3 . 1 Artifact . | . . . . . . . . . . . Weapon 41 | 2 2 . 13 1 . . 18 1 . 4 Energy Gun 14 | . 1 . 9 . . . 4 . . . Energy Cannon . | . . . . . . . . . . . Ballistic Gun 12 | 2 1 . 2 . . . 5 . . 2 Ballistic Cannon 7 | . . . . . . . 4 1 . 2 Launcher 8 | . . . 2 1 . . 5 . . . Special Weapon . | . . . . . . . . . . . Impact Weapon . | . . . . . . . . . . . Slashing Weapon . | . . . . . . . . . . . Piercing Weapon . | . . . . . . . . . . . Special Melee Weapon . | . . . . . . . . . . . Unidentified Prototypes 7 | . . . 4 . . . 3 . . . Parts Lost 25 | . 4 1 9 . . 1 2 2 6 . Power 2 | . 1 . 1 . . . . . . . Propulsion 6 | . 1 1 2 . . . 1 . 1 . Utility 7 | . . . . . . . 1 1 5 . Weapon 10 | . 2 . 6 . . 1 . 1 . . Highest Loss Streak 6 | . 4 1 5 . . 1 1 2 6 . Average Slot Usage (%) 90 | . 83 83 93 100 100 89 94 92 62 53 Engine 7 | . 2 . 9 11 11 11 6 7 4 6 Treads 12 | . 11 13 9 11 11 11 15 15 10 . Wheel 6 | . 13 13 11 11 11 11 2 . . . Device 2 | . . . . . . . 4 6 5 . Storage 35 | . 26 28 43 44 44 44 36 30 20 . Protection 4 | . . . . . . . 8 10 6 4 Energy Gun 6 | . 2 14 12 11 11 11 1 . . . Ballistic Gun 7 | . 25 14 5 . . . 6 7 3 5 Ballistic Cannon 4 | . . . . . . . 9 6 3 5 Naked Turns 42 | . . . . . . . . . 41 1 Heaviest Build 154 | 6 35 34 111 110 110 110 145 154 150 28 Greatest Support 40 | 10 16 16 23 10 10 10 40 40 40 40 Greatest Overweight (x) 12 | 1 3 2 10 10 10 10 12 3 10 2 Average Overweight (x) 5 | . 1 2 7 10 10 10 4 3 1 . Largest Inventory Capacity 34 | 6 16 16 32 32 32 32 34 34 34 4 Average Capacity 28 | 5 12 16 31 32 32 32 32 34 24 4 Most Carried 34 | 4 12 12 32 31 32 32 34 34 30 4 Average Carried 25 | 1 8 10 25 31 31 32 31 30 21 2 Final Capacity 34 | 6 16 16 32 32 32 32 34 34 4 4 Final Carried 32 | 4 12 10 31 31 32 32 32 30 4 3 Class Distribution -------------------- 82% | Hauler-Mutant 11% | Mutant 5% | Hacker-Mutant Dominant Class ---------------- Mutant | -10/Materials Mutant | -10/Mines Hauler-Mutant | -9/Materials Hauler-Mutant | -9/Mines Hauler-Mutant | -9/Exiles Hauler-Mutant | -8/Mines Hauler-Mutant | -8/Materials Hauler-Mutant | -7/Factory Hauler-Mutant | -7/Waste Hacker-Mutant | -7/Factory Resources | -11 -10 -10 -9 -9 -9 -8 -8 -7 -7 -7 ----------- Run | Scr Mat Min Mat Min Exi Min Mat Fac Was Fac Matter Collected 2567 | 131 242 51 630 . 30 35 1170 278 . . Remotely . | . . . . . . . . . . . Salvage Created 3997 | . 531 55 1649 27 . 31 1233 382 . 89 Parts 274 | . 36 4 97 9 . 6 104 16 . 2 Haulers Intercepted 13 | . 1 . 6 . . . 5 1 . . Recyclers Shooed 1 | . 1 . . . . . . . . . Parts Field Recycled 8 | . . . . . . . . 8 . . Retrieved Matter 125 | . . . . . . . . 125 . . Parts Self-Destructed . | . . . . . . . . . . . Prevented . | . . . . . . . . . . . Kills | -11 -10 -10 -9 -9 -9 -8 -8 -7 -7 -7 ------- Run | Scr Mat Min Mat Min Exi Min Mat Fac Was Fac Combat Hostiles Destroyed 118 | . 17 3 39 4 . 3 41 9 . 2 Guns 59 | . 17 3 26 1 . 1 6 3 . 2 Cannons 26 | . . . . . . . 20 6 . . AOE 32 | . . . 13 3 . 2 14 . . . Classes Destroyed 12 | . 3 1 5 . . . 3 . . . Worker 7 | . . 1 3 . . . 3 . . . Builder 7 | . . . 3 . . . 4 . . . Tunneler 1 | . . . 1 . . . . . . . Hauler 13 | . 1 . 6 . . . 5 1 . . Operator 2 | . . . . . . . 2 . . . Watcher 3 | . . . 2 . . . 1 . . . Swarmer 45 | . 8 3 8 4 . 3 19 . . . Grunt 47 | . 9 . 20 . . . 7 9 . 2 Brawler 1 | . . . . . . . 1 . . . Duelist 2 | . . . 1 . . . 1 . . . Sentry 21 | . . . 10 . . . 11 . . . Hunter 2 | . . . . . . . 2 . . . Best Kill Streak 12 | . 5 3 12 4 . 3 12 4 . 2 Combat Bots Only 9 | . 5 3 9 4 . 3 8 4 . 2 Max Kills in Single Turn 4 | . 1 1 3 3 . 2 4 1 . 1 Gunslinging 1 | . . . 1 . . . . . . . Exploded 3 | . . . 3 2 . 2 3 . . . Melee . | . . . . . . . . . . . Uniques/NPCs Destroyed . | . . . . . . . . . . . Combat | -11 -10 -10 -9 -9 -9 -8 -8 -7 -7 -7 -------- Run | Scr Mat Min Mat Min Exi Min Mat Fac Was Fac Damage Taken 5488 | . 642 75 1569 99 . 15 1517 739 430 402 Core 1047 | . 136 33 218 14 . 7 228 50 319 42 Absorbed by Shields . | . . . . . . . . . . . Core Remaining (%) 57 | 100 . 32 . . . 40 58 . . . Volleys Fired 352 | . 59 7 145 2 . 2 92 33 . 12 Largest 2 | . 2 2 2 2 . 2 2 2 . 2 Hottest 121 | . 60 60 121 95 . 95 119 71 . 76 Shots Fired 649 | . 112 14 245 4 . 3 183 64 . 24 Gun 482 | . 112 14 229 2 . 2 78 33 . 12 Cannon 139 | . . . . . . . 96 31 . 12 Launcher 28 | . . . 16 2 . 1 9 . . . Special . | . . . . . . . . . . . Kinetic 433 | . 108 7 90 . . . 140 64 . 24 Thermal 183 | . 4 7 134 2 . 2 34 . . . Explosive 28 | . . . 16 2 . 1 9 . . . Electromagnetic 5 | . . . 5 . . . . . . . Robot Hit Streak 57 | . 28 5 29 2 . 5 25 57 . 11 Robot Miss Streak 5 | . 3 1 2 1 . . 5 1 . 3 Penetration Max . | . . . . . . . . . . . Secondary Targets 8 | . 1 2 5 . . . . . . . Max Gunslinging Chain 1 | . 1 1 1 . . . . . . . Shots Hit Robots 505 | . 86 9 190 2 . 3 137 57 . 21 Core Hits 236 | . 36 4 81 4 . 3 74 20 . 14 Critical Hits 5 | . 1 . 2 . . . 2 . . . Critical Kills . | . . . . . . . . . . . Critical Parts Destroyed 4 | . 1 . 1 . . . 2 . . . Melee Attacks . | . . . . . . . . . . . Impact . | . . . . . . . . . . . Slashing . | . . . . . . . . . . . Piercing . | . . . . . . . . . . . Sneak Attacks . | . . . . . . . . . . . Combat Hostiles . | . . . . . . . . . . . Follow-up Attacks . | . . . . . . . . . . . Damage Inflicted 11937 | . 722 97 4405 196 . 122 4625 1400 . 370 Guns 5556 | . 713 97 2833 31 . 32 1119 533 . 198 Cannons 2666 | . . . . . . . 1713 815 . 138 Explosions 3662 | . . . 1563 165 . 90 1792 52 . . Melee . | . . . . . . . . . . . Ramming 53 | . 9 . 9 . . . 1 . . 34 Kinetic 5803 | . 682 24 1044 . . . 2369 1348 . 336 Thermal 2652 | . 31 73 1939 31 . 32 546 . . . Explosive 3333 | . . . 1369 165 . 90 1709 . . . Electromagnetic 96 | . . . 44 . . . . 52 . . Impact . | . . . . . . . . . . . Slashing . | . . . . . . . . . . . Piercing . | . . . . . . . . . . . Highest Corruption 15 | . 1 1 . . . . 4 . 8 15 Average Corruption 4 | . 1 1 . . . . 4 . 4 8 Corruption Purged . | . . . . . . . . . . . Effects 52 | . 2 . . . . . 28 . 4 18 Message Errors 13 | . 1 . . . . . 7 . 1 4 Matter Fused 12 | . . . . . . . 9 . 1 2 Heat Flow Errors 4 | . . . . . . . 1 . 1 2 Energy Discharges 10 | . 1 . . . . . 3 . 1 5 Parts Rejected 1 | . . . . . . . 1 . . . Data Loss (minor) 7 | . . . . . . . 5 . . 2 Data Loss (major) 1 | . . . . . . . . . . 1 Misdirections 1 | . . . . . . . . . . 1 Targeting Errors 3 | . . . . . . . 2 . . 1 Overload Shots . | . . . . . . . . . . . Overflow Damage 205 | . . . 88 . . . 99 18 . . Projectiles 40 | . . . . . . . 24 16 . . Explosions 165 | . . . 88 . . . 75 2 . . Melee . | . . . . . . . . . . . Knockbacks 25 | . . . 1 . . . 10 9 . 5 Impact 1 | . . . 1 . . . . . . . Kinetic 24 | . . . . . . . 10 9 . 5 Secondary . | . . . . . . . . . . . Self-Inflicted Damage 308 | . 4 . 142 60 . . 69 19 . 14 Shots 8 | . . . 3 2 . . 2 1 . . Rammed 14 | . 1 . 1 . . . 1 . . 11 Targets Rammed 18 | . 1 . 1 . . . 1 . . 15 Kicked 4 | . . . . . . . . . . 4 Crushed . | . . . . . . . . . . . Highest Temperature 444 | . 34 10 444 54 . 47 366 306 192 219 Average Temperature 83 | . 10 7 84 28 . 23 77 120 97 59 Received Heat Transfer 1863 | . 360 . 684 . . . 297 486 . 36 Effects 6 | . . . 2 . . . 1 3 . . Shutdowns 1 | . . . 1 . . . . . . . Interference 3 | . . . . . . . . 3 . . Short Circuit 1 | . . . 1 . . . . . . . Damage (minor) 1 | . . . . . . . 1 . . . Siege Activations . | . . . . . . . . . . . Robots Corrupted . | . . . . . . . . . . . Combat Hostiles . | . . . . . . . . . . . Parts Fried . | . . . . . . . . . . . Impact Corruptions . | . . . . . . . . . . . Robots Melted 1 | . . . . . . . 1 . . . Combat Hostiles 1 | . . . . . . . 1 . . . Parts Melted 6 | . . 1 3 . . . 2 . . . Heat Transferred 5632 | . 75 175 4185 74 . 74 1049 . . . Parts Sabotaged . | . . . . . . . . . . . Parts Stolen . | . . . . . . . . . . . Parts Stripped . | . . . . . . . . . . . Power Chain Reactions 1 | . . . 1 . . . . . . . Missiles Intercepted . | . . . . . . . . . . . Alert | -11 -10 -10 -9 -9 -9 -8 -8 -7 -7 -7 ------- Run | Scr Mat Min Mat Min Exi Min Mat Fac Was Fac Peak Influence 573 | . 292 154 562 93 . 66 573 297 43 83 Average Influence 198 | . 137 146 179 83 . 62 291 147 19 19 Maximum Alert Level 2 | . 1 . 2 . . . 2 1 . . Low Security (%) 56 | 100 69 100 67 100 . 100 25 74 100 100 Level 1 33 | . 30 . 24 . . . 54 25 . . Level 2 9 | . . . 7 . . . 19 . . . Level 3 . | . . . . . . . . . . . Level 4 . | . . . . . . . . . . . Level 5 . | . . . . . . . . . . . High Security . | . . . . . . . . . . . Max Security . | . . . . . . . . . . . Squads Dispatched 16 | . 2 . 4 . . . 6 2 . 2 Investigation 5 | . 2 . 1 . . . 2 . . . Extermination 2 | . . . . . . . . 1 . 1 Reinforcement 7 | . . . 3 . . . 2 1 . 1 Assault . | . . . . . . . . . . . Garrison 2 | . . . . . . . 2 . . . Intercept . | . . . . . . . . . . . Construction Impeded 1 | . . . 1 . . . . . . . Haulers Reinforced . | . . . . . . . . . . . Stealth | -11 -10 -10 -9 -9 -9 -8 -8 -7 -7 -7 --------- Run | Scr Mat Min Mat Min Exi Min Mat Fac Was Fac Distress Signals 15 | . 2 . 7 . . . 5 1 . . Communications Jammed . | . . . . . . . . . . . Distress Signals . | . . . . . . . . . . . Times Spotted 224 | . 30 3 77 4 . 2 80 16 6 6 Peak Tracking Total 9 | . 7 3 9 4 . 3 7 7 6 3 Tactical Retreats 20 | . 6 . 5 . . . 3 6 . . Traps | -11 -10 -10 -9 -9 -9 -8 -8 -7 -7 -7 ------- Run | Scr Mat Min Mat Min Exi Min Mat Fac Was Fac Traps Triggered 6 | . 3 . 1 . . . 1 1 . . Indirectly . | . . . . . . . . . . . Trap Hack Attempts . | . . . . . . . . . . . Triggered . | . . . . . . . . . . . Disarmed . | . . . . . . . . . . . Reprogrammed . | . . . . . . . . . . . Reused . | . . . . . . . . . . . Traps Extracted . | . . . . . . . . . . . Installed . | . . . . . . . . . . . Triggered . | . . . . . . . . . . . Machines | -11 -10 -10 -9 -9 -9 -8 -8 -7 -7 -7 ---------- Run | Scr Mat Min Mat Min Exi Min Mat Fac Was Fac Machines Disabled 20 | . . . 7 . . . 12 1 . . Max in Single Turn 2 | . . . 1 . . . 2 1 . . Garrison Access 1 | . . . . . . . 1 . . . Machines Sabotaged . | . . . . . . . . . . . Garrisons Compromised . | . . . . . . . . . . . Overloaded Fab Kills . | . . . . . . . . . . . Fab Network Shutdowns . | . . . . . . . . . . . Hacking | -11 -10 -10 -9 -9 -9 -8 -8 -7 -7 -7 --------- Run | Scr Mat Min Mat Min Exi Min Mat Fac Was Fac Machines Accessed 28 | . 5 . 8 . 1 . 12 1 . 1 Terminals 20 | . 4 . 7 . . . 7 1 . 1 Fabricators . | . . . . . . . . . . . Repair Stations 3 | . 1 . . . . . 2 . . . Recycling Units . | . . . . . . . . . . . Scanalyzers 3 | . . . 1 . . . 2 . . . Garrison Access 1 | . . . . . . . 1 . . . Total Hacks 84 | . 14 . 17 . 1 . 47 2 . 3 Successful 59 | . 9 . 12 . 1 . 35 1 . 1 Failed 25 | . 5 . 5 . . . 12 1 . 2 Catastrophic 5 | . . . 1 . . . 3 . . 1 Database Lockouts . | . . . . . . . . . . . Manual 44 | . 9 . 14 . . . 19 . . 2 Terminals 50 | . 11 . 13 . . . 21 2 . 3 Fabricators . | . . . . . . . . . . . Repair Stations 11 | . 3 . . . . . 8 . . . Recycling Units . | . . . . . . . . . . . Scanalyzers 20 | . . . 4 . . . 16 . . . Garrison Access 2 | . . . . . . . 2 . . . Terminal Hacks 26 | . 5 . 6 . 1 . 12 1 . 1 Record 4 | . 1 . . . 1 . 1 . . 1 Part Schematic 2 | . 1 . . . . . 1 . . . Branch Access Points 2 | . 1 . . . . . 1 . . . Repair Station Index 1 | . . . . . . . 1 . . . Alert Level 1 | . . . 1 . . . . . . . Unreport Threat 5 | . . . 2 . . . 3 . . . Locate Traps 1 | . . . . . . . 1 . . . Security Status 1 | . . . . . . . 1 . . . Transport Status 4 | . 1 . 2 . . . 1 . . . Recall Reinforcements 1 | . . . . . . . 1 . . . Hauler Manifests 2 | . . . 1 . . . 1 . . . Registered Prototypes 1 | . . . . . . . . 1 . . Zone Layout 1 | . 1 . . . . . . . . . Fabricator Hacks . | . . . . . . . . . . . Repair Station Hacks 8 | . 3 . . . . . 5 . . . Scan Component 4 | . 1 . . . . . 3 . . . Repair 3 | . 1 . . . . . 2 . . . Refit 1 | . 1 . . . . . . . . . Recycling Unit Hacks . | . . . . . . . . . . . Scanalyzer 20 | . . . 4 . . . 16 . . . Insert Component 8 | . . . 2 . . . 6 . . . Analyze 12 | . . . 2 . . . 10 . . . Garrison Access Hacks 1 | . . . . . . . 1 . . . Seal Access 1 | . . . . . . . 1 . . . Unauthorized Hacks 4 | . 1 . 2 . . . 1 . . . Terminals 4 | . 1 . 2 . . . 1 . . . Track 4 | . 1 . 2 . . . 1 . . . Fabricators . | . . . . . . . . . . . Repair Stations . | . . . . . . . . . . . Recycling Units . | . . . . . . . . . . . Scanalyzers . | . . . . . . . . . . . Garrison Access . | . . . . . . . . . . . Data Cores Recovered 1 | . . . . . . . 1 . . . Used . | . . . . . . . . . . . Hacking Detections 23 | . 4 . 6 . . . 11 1 . 1 Full Trace Events 2 | . . . . . . . 2 . . . Feedback Events . | . . . . . . . . . . . Feedback Blocked . | . . . . . . . . . . . Robot Schematics Acquired . | . . . . . . . . . . . Robots Built . | . . . . . . . . . . . Matter . | . . . . . . . . . . . Time . | . . . . . . . . . . . Total Robot Build Rating . | . . . . . . . . . . . Part Schematics Acquired 10 | . 1 . 2 . . . 7 . . . Parts Built . | . . . . . . . . . . . Matter . | . . . . . . . . . . . Time . | . . . . . . . . . . . Total Part Build Rating . | . . . . . . . . . . . Parts Repaired 3 | . 1 . . . . . 2 . . . Time 78 | . 26 . . . . . 52 . . . Parts Recycled . | . . . . . . . . . . . Recycled Matter . | . . . . . . . . . . . Retrieved Matter . | . . . . . . . . . . . Retrieved Components . | . . . . . . . . . . . Parts Scanalyzed 8 | . . . 2 . . . 6 . . . Part Schematics Acquired 8 | . . . 2 . . . 6 . . . Parts Damaged 2 | . . . . . . . 2 . . . Bothacking | -11 -10 -10 -9 -9 -9 -8 -8 -7 -7 -7 ------------ Run | Scr Mat Min Mat Min Exi Min Mat Fac Was Fac Used RIF Installer . | . . . . . . . . . . . Robots Hacked . | . . . . . . . . . . . Non-combat . | . . . . . . . . . . . Combat . | . . . . . . . . . . . Robot Hacks Applied . | . . . . . . . . . . . Relay Couplers Released . | . . . . . . . . . . . Robots Rewired . | . . . . . . . . . . . Allies Hacked . | . . . . . . . . . . . Hacks Repelled . | . . . . . . . . . . . Allies | -11 -10 -10 -9 -9 -9 -8 -8 -7 -7 -7 -------- Run | Scr Mat Min Mat Min Exi Min Mat Fac Was Fac Total Allies . | . . . . . . . . . . . Largest Group . | . . . . . . . . . . . Highest-Rated Group . | . . . . . . . . . . . Highest-Rated Ally . | . . . . . . . . . . . Total Orders . | . . . . . . . . . . . Ally Attacks . | . . . . . . . . . . . Total Damage . | . . . . . . . . . . . Kills . | . . . . . . . . . . . Allies Corrupted . | . . . . . . . . . . . Allies Melted . | . . . . . . . . . . . Intel | -11 -10 -10 -9 -9 -9 -8 -8 -7 -7 -7 ------- Run | Scr Mat Min Mat Min Exi Min Mat Fac Was Fac Robot Analysis Total . | . . . . . . . . . . . Derelict Logs Recovered . | . . . . . . . . . . . Drone Launches . | . . . . . . . . . . . Drone Recoveries . | . . . . . . . . . . . Exploration | -11 -10 -10 -9 -9 -9 -8 -8 -7 -7 -7 ------------- Run | Scr Mat Min Mat Min Exi Min Mat Fac Was Fac Turns Passed 8308 | 45 664 158 2502 24 525 211 2949 624 144 462 Spaces Moved 3945 | 43 432 113 1194 10 292 115 1160 210 112 264 Core 143 | 4 . . . . . . . . 68 71 Treads 1142 | . . . 2 . . . 886 210 44 . Legs 193 | . . . . . . . . . . 193 Wheels 2467 | 39 432 113 1192 10 292 115 274 . . . Hover . | . . . . . . . . . . . Flight . | . . . . . . . . . . . Fastest Speed 50 | 50 80 120 120 180 180 180 180 230 50 50 Average Speed 171 | 79 95 120 166 180 180 180 214 230 124 134 Slowest Speed 550 | 100 120 120 240 180 180 180 230 230 550 160 Overloaded Moves . | . . . . . . . . . . . Propulsion Burnouts . | . . . . . . . . . . . Robots Hopped . | . . . . . . . . . . . Cave-ins Triggered 1 | . . . 1 . . . . . . . Exploration Rate (%) 44 | 4 85 28 88 4 67 31 91 7 75 8 Regions Visited 10 Branch Regions 4 Pre-discovered Areas 1 | . . . . . 1 . . . . . Known Exits Taken 1 | . 1 . . . . . . . . . Unknown Exits Taken 7 | 1 . 1 1 1 1 1 1 . . . Scrap Searched 2 | . . 1 . . . 1 . . . . Spaces Dug . | . . . . . . . . . . . Terrain Destroyed 277 | . . . 153 21 . 6 93 2 . 2 Melee . | . . . . . . . . . . . Projectile 13 | . . . . . . . 9 2 . 2 AOE 264 | . . . 153 21 . 6 84 . . . Actions | -11 -10 -10 -9 -9 -9 -8 -8 -7 -7 -7 --------- Run | Scr Mat Min Mat Min Exi Min Mat Fac Was Fac Total 4842 | 51 589 123 1465 12 292 116 1451 288 116 339 Wait 302 | . 83 2 63 . . . 93 33 . 28 Move 3936 | 42 431 112 1193 9 291 114 1159 210 111 264 Hop . | . . . . . . . . . . . Pick Up 88 | 4 7 . 30 . 1 . 36 4 2 4 Fast Attach 32 | 5 4 . 7 . . . 11 . . 5 Attach 30 | . 1 2 9 . . . 4 5 1 8 Detach 6 | . . . 2 . . . 1 . . 3 Swap 30 | . 2 . 8 1 . . 17 2 . . Drop 48 | . 1 . 7 . . . 37 1 2 . Fire 352 | . 59 7 145 2 . 2 92 33 . 12 Melee . | . . . . . . . . . . . Ram 2 | . 1 . 1 . . . . . . . Kick 15 | . . . . . . . . . . 15 Crush 1 | . . . . . . . 1 . . . Escape Stasis . | . . . . . . . . . . . Rewire . | . . . . . . . . . . . Trap . | . . . . . . . . . . . Miscellaneous . | . . . . . . . . . . . Route ------- -11/Scrapyard -10/Materials (discovered 3 exits: *Mat x2 / *Min) -10/Mines -9/Materials (discovered 6 exits: *Mat x2 / [*Min x2] / [*Sto x2]) -9/Mines -9/Exiles -8/Mines -8/Materials (discovered 2 exits: *Fac x2) -7/Factory -7/Waste -7/Factory History --------- Turn | Location | Event 2 | -11/Scrapyard | Met Revision 17 7 | -11/Scrapyard | Discovered new exit (range 15) 46 | -11/Scrapyard | Entered Materials 114 | -10/Materials | Discovered new exit (range 16) 129 | -10/Materials | Identified exit to Mines 199 | -10/Materials | Discovered new exit (range 16) 308 | -10/Materials | Build established: Mutant 477 | -10/Materials | Repaired Wheel 535 | -10/Materials | Discovered new exit (range 14) 595 | -10/Materials | Core integrity fell below 50% 618 | -10/Materials | Lost 4 parts (1p1n2w) 710 | -10/Materials | Entered Mines 716 | -10/Mines | Met a Derelict bent on vengeance 849 | -10/Mines | Discovered new exit (range 13) 868 | -10/Mines | Entered Materials 868 | -9/Materials | Evolved 2 slots: Utility x2 1146 | -9/Materials | Discovered new exit (range 16) 1226 | -9/Materials | Build established: Hauler-Mutant 1721 | -9/Materials | Discovered new exit (range 8) 2059 | -9/Materials | Destroyed 9 combat bots 2074 | -9/Materials | Crushed by falling debris 2167 | -9/Materials | Discovered new exit (range 15) 2310 | -9/Materials | Discovered new exit (range 13) 2381 | -9/Materials | Lost 5 parts (1p1n3w) 2500 | -9/Materials | Core integrity fell below 50% 2653 | -9/Materials | Discovered new exit (range 8) 2866 | -9/Materials | Discovered new exit (range 16) 3370 | -9/Materials | Entered Mines 3385 | -9/Mines | Deemed a non-threat by the Exiles lab entrance 3387 | -9/Mines | Discovered new exit (range 5) 3394 | -9/Mines | Entered Exiles 3439 | -9/Exiles | Met 8R-AWN 3470 | -9/Exiles | Met EX-HEX 3528 | -9/Exiles | Met EX-BIN 3551 | -9/Exiles | Met EX-DEC 3562 | -9/Exiles | Learned location of Zion (-6) 3642 | -9/Exiles | Visited The Gauntlet 3838 | -9/Exiles | Discovered new exit (range 10) 3919 | -9/Exiles | Entered Mines 4110 | -8/Mines | Discovered new exit (range 15) 4130 | -8/Mines | Entered Materials 4130 | -8/Materials | Evolved 2 slots: Utility x2 4732 | -8/Materials | Discovered new exit (range 14) 5026 | -8/Materials | Destroyed 8 combat bots 5396 | -8/Materials | Discovered new exit (range 10) 5882 | -8/Materials | Garrison activated, responded to threat 6479 | -8/Materials | Repaired Hcp. Storage Unit 6506 | -8/Materials | Repaired Hcp. Storage Unit 7079 | -8/Materials | Entered Factory 7079 | -7/Factory | Evolved 2 slots: Utility x2 7703 | -7/Factory | Sucked down chute 7703 | -7/Factory | Entered Waste 7718 | -7/Waste | EMP discharged 7747 | -7/Waste | Spotted C-40 Crusher 7765 | -7/Waste | Crushed by Compactor (1 part destroyed, 1 dropped) 7777 | -7/Waste | Crushed by Compactor (1 part destroyed, 1 dropped) 7789 | -7/Waste | Spotted C-40 Crusher 7791 | -7/Waste | Crushed by Compactor (1 part destroyed, 2 dropped) 7794 | -7/Waste | Spotted C-40 Crusher 7799 | -7/Waste | Spotted C-40 Crusher 7800 | -7/Waste | Crushed by Compactor (1 part destroyed, 1 dropped) 7801 | -7/Waste | Spotted C-40 Crusher 7803 | -7/Waste | Crushed by Compactor (1 part destroyed, 2 dropped) 7806 | -7/Waste | Crushed by Compactor (1 part destroyed, 1 dropped) 7818 | -7/Waste | EMP discharged 7820 | -7/Waste | Core integrity fell below 50% 7835 | -7/Waste | Spotted C-40 Crusher 7837 | -7/Waste | Lost 6 parts (1n5u) 7839 | -7/Waste | Discovered new exit (range 16) 7847 | -7/Waste | Entered Factory 8153 | -7/Factory | Build established: Hacker-Mutant 8283 | -7/Factory | System corruption reached 10% 8309 | -7/Factory | Self-destructed Last Messages --------------- 08281_ Slammed into P-60 Hacker. 08282_ Destabilizing: System interference. 08282_ Imp. Cooling System temporarily disabled. 08283_ Slammed into P-60 Hacker. 08283_ Destabilizing: Core damaged (-7). 08286_ Kicked P-60 Hacker out of the way. 08287_ Slammed into P-60 Hacker. 08288_ Imp. Titanium Leg permanently disabled. 08288_ Destabilizing: Short circuit. 08290_ Slammed into P-60 Hacker. 08293_ Gauss Cannon permanently disabled. 08293_ Destabilizing: Short circuit. 08295_ Kicked P-60 Hacker out of the way. 08296_ Slammed into P-60 Hacker. 08298_ Imp. Cooling System permanently disabled. 08298_ Destabilizing: Short circuit. 08300_ Slammed into P-60 Hacker. 08301_ Kicked P-60 Hacker out of the way. 08302_ System corrupted: Energy discharge (-100). 08303_ Kicked P-60 Hacker out of the way. Map ----- +----------------------------------------------------+ | ?????????????????????????????????????????????????? | | ?????????????????????????????????????????????????? | | ?????????????????????????????????????????????????? | | ?????????????????????????????????????????????????? | | ?????????????????????????????????????????????????? | | ?????????????????????????????????????????????????? | | ?????????????????????????????????????????????????? | | ?????????????????????????????????????????????????? | | ?????????????????????????????????????????????????? | | ?????????????????????????????????????????????????? | | ?????????????????????????????????????????????????? | | ?????????????????????????????????????????????????? | | ?????????????????????????????????????????????????? | | ????????????????????????#????????????????????????? | | ????????????????????????# ???????????????????????? | | ??????????????????????### ??????????????????????#+ | | ??????????????????????? ?????????????????????? | | ?????????????????????####+#####????????????????? | | ?????????????????????# #????############## | | ?????????????????????# #????# [ # | | ????????????????????## #????# # | | ????????????????????## ###### """"""""" # | | ?????????????????????# + + # | | ?????????????????????# p ###### """"""""" # | | ?????????????????????# #????# + | | ?????????????????????# @ #????# """"""""" # | | ?????????????????????# #????# # | | ?????????????????????##########????# """"""""" # | | ???????????????????????????????????# # | | ???????????????????????????????????# """"""""" /# | | ???????????????????????????????????# # | | ???????????????????????????????????############## | | ????????????????????????????????????????????????# | | ????????????????????????????????????????????????# | | ????????????????????????????????????????????????# | | ????????????????????????????????????????????????# | | ????????????????????????????????????????????????# | | ????????????????????????????????????????????????+ | | ????????????????????????????????????????????????# | | ????????????????????????????????????????????????# | | ????????????????????????????????????????????????? | | ?????????????????????????????????????????????????? | | ?????????????????????????????????????????????????? | | ?????????????????????????????????????????????????? | | ?????????????????????????????????????????????????? | | ?????????????????????????????????????????????????? | | ?????????????????????????????????????????????????? | | ?????????????????????????????????????????????????? | | ?????????????????????????????????????????????????? | | ?????????????????????????????????????????????????? | +----------------------------------------------------+ Best States ------------- Heat Dissipation 61 Energy Generation 14 Energy Capacity 280 Matter Stores 300 Matter Capacity 300 Sight Range 16 Terrain Scan Density 10 Armor Coverage 600 Resistance: KI 20 Resistance: TH 20 Resistance: EX 20 Resistance: EM 20 Resistance: I 20 Resistance: S 20 Resistance: P 20 Evasion (%) 50 Targeting Accuracy 8 Melee Accuracy 6 Recoil Reduction 2 Kinecelleration 30 Offensive Hacking 20 Defensive Hacking 10 Item Schematics ----------------- Hcp. Storage Unit | -10/Materials | Hacked Cld. Ion Engine | -9/Materials | Scanalyzed Arm. Treads | -9/Materials | Scanalyzed Hacking Suite | -8/Materials | Scanalyzed Imp. Weapon Shielding | -8/Materials | Hacked Kinecellerator | -8/Materials | Scanalyzed Enh. Autogun | -8/Materials | Scanalyzed Imp. Field Recycling Unit | -8/Materials | Scanalyzed System Shield | -8/Materials | Scanalyzed Imp. Terrain Scan Processor | -8/Materials | Scanalyzed Robot Schematics ------------------ None Fabricated ------------ Nothing Alien Tech Used ----------------- None Achievements -------------- None Challenges ------------ None Game ------ Seed LinkedGodWarhead Manual? 0 Play Time 01:12:51 Cumulative 56.7 hours Start 2020.05.10 @ 14:29:57 End 2020.05.10 @ 21:11:26 Sessions 1 Manual Loads 0 Difficulty Adventurer Special Mode None Game No. 25 Rogue 2 Adventurer 23 Explorer 0 Win Type - Total 2 Types 1/0/1/0/0/0/0 Lore% 29 Gallery% 49 Achievement% 39 Wizard Run 0 Options --------- ASCII 0 Keyboard 0 Movement Numpad Keybinds 0 Fullscreen 1 Font 18/SmallcapsGlow Map View 76x50 Tactical HUD 1 Map Filters NONE Filters NONE Steam 0 RUN: e9d6e599-7dab-4845-a6e8-2a3a4fae1cce